[Event "Kragero Resort ELO 2024"]
[Site "Kragero"]
[Date "2024.02.24"]
[Round "7.25"]
[White "Persson, Michael"]
[Black "Holten, Terje"]
[Result "1-0"]
[ECO "E21"]
[WhiteElo "1296"]
[BlackElo "1313"]
[Annotator "NA"]
[PlyCount "113"]
[EventDate "2024.02.21"]
[EventType "swiss"]
[EventCountry "NOR"]
[SourceTitle "playchess.com"]
[Source "ChessBase"]
[SourceQuality "1"]
[TimeControl "5400+30"]

1. d4 Nf6 2. c4 e6 3. Nc3 Bb4 4. Bd2 b6 5. Nf3 Bb7 6. e3 O-O 7. a3 Bxc3 8. Bxc3 d5 9. cxd5 Bxd5 10. Be2 Nbd7 11. O-O Re8 12. Re1 Ne4 13. Rc1 Nf8 14. Bb4 a5 15. Bxf8 Rxf8 16. Bd3 Rc8 17. Qc2 f5 18. Bc4 Kh8 19. Bxd5 Qxd5 20. Qc6 Qb3 21. Rc2 Rfe8 22. Rec1 Nf6 23. h3 Qd5 24. Ne5 Qxc6 25. Rxc6 Nd5 26. Nf7+ Kg8 27. Nd6 Red8 28. Nxc8 Rxc8 29. Rxe6 Kf7 30. Rec6 Ke7 31. Kf1 Kd7 32. Ke2 Re8 33. Kd2 g6 34. h4 Rc8 35. g3 Ne7 36. R6c4 c6 37. b4 axb4 38. Rxb4 b5 39. Ra1 Nd5 40. Rb2 Nb6 41. Rc2 Kd6 42. Kd3 Nd5 43. Rc5 Ra8 44. Rcc1 Nb6 45. f3 Re8 46. Re1 Nc4 47. a4 Nb2+ 48. Kc2 Nxa4 49. e4 fxe4 50. Rxe4 Rf8 51. Re3 Rf7 52. Kd3 Nb2+ 53. Ke4 Nc4 54. Re2 Re7+ 55. Kd3 Rf7 56. f4 Kd5 {[%emt 1:00:13]} 57. Ra8 {[%emt 1:32:21]} 1-0

[Event "Kragero Resort ELO 2024"]
[Site "Kragero"]
[Date "2024.02.24"]
[Round "8.7"]
[White "Alvanjyan, Aida"]
[Black "Eckholdt, Carl Marcus"]
[Result "1-0"]
[ECO "B22"]
[WhiteElo "1508"]
[BlackElo "1575"]
[Annotator "NA RC"]
[PlyCount "83"]
[EventDate "2024.02.21"]
[EventType "swiss"]
[EventCountry "NOR"]
[SourceTitle "playchess.com"]
[Source "ChessBase"]
[SourceQuality "1"]
[TimeControl "5400+30"]

1. e4 b6 2. d4 Bb7 3. Bd3 e6 4. Nf3 c5 5. c3 cxd4 6. cxd4 Nf6 7. e5 Nd5 8. O-O Be7 9. Nc3 Nxc3 10. bxc3 O-O 11. Re1 Nc6 12. Qc2 h6 13. Qe2 Na5 14. Bc2 h5 15. Nd2 g6 16. Ne4 Kg7 17. Qe3 Rh8 18. Qg3 h4 19. Qg4 Rc8 20. Ng5 Qf8 21. Re3 Bxg5 22. Qxg5 Qd8 23. Qg4 Rh5 24. Be4 Rg5 25. Qh3 Bxe4 26. Rxe4 Rh5 27. Rf4 Nc4 28. Qf3 Qf8 29. Rxh4 Rxh4 30. Qf6+ Kg8 31. Qxh4 Qg7 32. Bh6 Qh7 33. Re1 d6 34. Re4 f5 35. exf6 Kf7 36. Qh3 Re8 37. Qh4 Qh8 38. Bg5 Qxh4 39. Rxh4 e5 40. Rh7+ Ke6 41. d5+ Kf5 {[%emt 1:15:19]} 42. f7 {[%emt 1:35:47]} 1-0

[Event "Kragero Resort ELO 2024"]
[Site "Kragero"]
[Date "2024.02.24"]
[Round "8.8"]
[White "Wernberg, Nikolai Olsen"]
[Black "Mortensen, Michael"]
[Result "1-0"]
[ECO "C00"]
[WhiteElo "1850"]
[BlackElo "1330"]
[Annotator "NA RC"]
[PlyCount "79"]
[EventDate "2024.02.21"]
[EventType "swiss"]
[EventCountry "NOR"]
[SourceTitle "playchess.com"]
[Source "ChessBase"]
[SourceQuality "1"]
[TimeControl "5400+30"]

1. Nf3 e6 2. g3 Nf6 3. Bg2 Be7 4. O-O O-O 5. d3 d5 6. Nbd2 c5 7. e4 Nc6 8. Re1 Re8 9. e5 Nd7 10. Nf1 b5 11. h4 c4 12. d4 a5 13. N1h2 b4 14. Ng4 Ba6 15. Ng5 Bxg5 16. Bxg5 Qb6 17. Be3 a4 18. h5 Ne7 19. h6 g6 20. c3 b3 21. a3 Nf5 22. Bg5 Ne7 23. Qf3 Nf5 24. Nf6+ Nxf6 25. Bxf6 Qb8 26. g4 Ne7 27. Bg5 Nf5 28. gxf5 exf5 29. Qxd5 Re6 30. Qxa8 Qxa8 31. Bxa8 Re8 32. Bc6 Rc8 33. d5 Rc7 34. d6 Rc8 35. d7 Rb8 36. Rad1 f6 37. d8=Q+ Rxd8 38. Rxd8+ Kf7 39. exf6 Bc8 {[%emt 1:07:08]} 40. Re7# {[%emt 0:56:56]} 1-0

[Event "Kragero Resort ELO 2024"]
[Site "Kragero"]
[Date "2024.02.24"]
[Round "8.9"]
[White "Digernes, Mikael"]
[Black "Smedsrud, Petter"]
[Result "1-0"]
[ECO "B17"]
[WhiteElo "1593"]
[BlackElo "1580"]
[Annotator "NA RC"]
[PlyCount "54"]
[EventDate "2024.02.21"]
[EventType "swiss"]
[EventCountry "NOR"]
[SourceTitle "playchess.com"]
[Source "ChessBase"]
[SourceQuality "1"]
[TimeControl "5400+30"]

1. e4 c6 2. Nf3 d5 3. Nc3 dxe4 4. Nxe4 Nf6 5. Ng3 Nbd7 6. d4 Qc7 7. Bd3 e6 8. c3 Bd6 9. Qc2 b6 10. Bg5 h6 11. Bxf6 Nxf6 12. Ne4 Nxe4 13. Bxe4 Bb7 14. O-O-O c5 15. dxc5 Bxc5 16. Qa4+ Ke7 17. Bxb7 Qxb7 18. Ne5 b5 19. Qf4 Rhf8 20. Rd7+ Qxd7 21. Nxd7 Kxd7 22. Rd1+ Kc6 23. b4 Be7 24. Qe4+ Kc7 25. Qe5+ Kb6 26. Rd7 Bg5+ 27. f4 {[%emt 1:05:59]} Bd8 {[%emt 0:45:07]} 1-0

[Event "Kragero Resort ELO 2024"]
[Site "Kragero"]
[Date "2024.02.24"]
[Round "8.10"]
[White "Kveim, Ingvar Torjesen"]
[Black "Dale, Marius Hag"]
[Result "1/2-1/2"]
[ECO "B62"]
[WhiteElo "1542"]
[BlackElo "1415"]
[Annotator "NA RC"]
[PlyCount "53"]
[EventDate "2024.02.21"]
[EventType "swiss"]
[EventCountry "NOR"]
[SourceTitle "playchess.com"]
[Source "ChessBase"]
[SourceQuality "1"]
[TimeControl "5400+30"]

1. e4 c5 2. Nf3 d6 3. d4 cxd4 4. Nxd4 Nf6 5. Nc3 Nc6 6. Be2 e6 7. O-O Be7 8. Bg5 h6 9. Bh4 O-O 10. a3 a6 11. Nb3 Qc7 12. f4 Nxe4 13. Nxe4 Bxh4 14. Qxd6 Qb6+ 15. Qc5 Qxc5+ 16. Nbxc5 Be7 17. Nb3 f5 18. Nec5 e5 19. fxe5 Nxe5 20. Rfe1 Bf6 21. c3 b6 22. Nd3 Nxd3 23. Bxd3 Bb7 24. Bxf5 Bh4 25. Be6+ Kh8 26. g3 Bg5 {[%emt 0:55:39]} 27. Nd4 {[%emt 0:52:00]} 1/2-1/2

[Event "Kragero Resort ELO 2024"]
[Site "Kragero"]
[Date "2024.02.24"]
[Round "8.12"]
[White "Gjersvik, Aksel Elias"]
[Black "Shehzad, Alina"]
[Result "1-0"]
[ECO "B23"]
[WhiteElo "1451"]
[BlackElo "1474"]
[Annotator "NA RC"]
[PlyCount "43"]
[EventDate "2024.02.21"]
[EventType "swiss"]
[EventCountry "NOR"]
[SourceTitle "playchess.com"]
[Source "ChessBase"]
[SourceQuality "1"]
[TimeControl "5400+30"]

1. e4 c5 2. Nc3 d6 3. d4 cxd4 4. Qxd4 Nc6 5. Qd2 g6 6. b3 Bh6 7. f4 Nf6 8. Bb2 O-O 9. g3 e5 10. Nge2 Re8 11. Bg2 Bg4 12. O-O-O Nd4 13. Rdf1 Nxe2+ 14. Nxe2 exf4 15. Nxf4 Rc8 16. Kb1 Rc5 17. Qf2 Nxe4 18. Qd4 Rce5 19. Bxe4 f6 20. Bd5+ Kh8 21. Nd3 R5e7 {[%emt 1:37:50]} 22. Qxg4 {[%emt 0:32:43]} 1-0

[Event "Kragero Resort ELO 2024"]
[Site "Kragero"]
[Date "2024.02.24"]
[Round "8.13"]
[White "Nordahl, Frederik"]
[Black "Jahr, Even"]
[Result "0-1"]
[ECO "B28"]
[WhiteElo "1396"]
[BlackElo "1689"]
[Annotator "NA RC"]
[PlyCount "54"]
[EventDate "2024.02.21"]
[EventType "swiss"]
[EventCountry "NOR"]
[SourceTitle "playchess.com"]
[Source "ChessBase"]
[SourceQuality "1"]
[TimeControl "5400+30"]

1. e4 c5 2. Nf3 a6 3. d4 cxd4 4. Nxd4 Nf6 5. Nc3 e5 6. Nf3 Bb4 7. Bd3 O-O 8. O-O Bxc3 9. bxc3 Nc6 10. Ba3 Re8 11. Nd2 d5 12. f3 Qa5 13. Bb2 Qb6+ 14. Kh1 Qxb2 15. exd5 Nxd5 16. Nc4 Qxc3 17. Nd6 Rd8 18. Ne4 Qa5 19. f4 Nxf4 20. g3 Nxd3 21. Qh5 Be6 22. cxd3 Rf8 23. Rf6 Bd5 24. Qf3 Bxe4 25. dxe4 Qd8 26. Rf5 Nd4 27. Qg4 {[%emt 0:34:09]} Nxf5 {[%emt 0:37:16]} 0-1

[Event "Kragero Resort ELO 2024"]
[Site "Kragero"]
[Date "2024.02.24"]
[Round "8.14"]
[White "Kopperud, Vidar Aleksander"]
[Black "Hoifodt, Jakob Salen"]
[Result "1/2-1/2"]
[ECO "D55"]
[WhiteElo "1642"]
[BlackElo "1373"]
[Annotator "NA RC"]
[PlyCount "33"]
[EventDate "2024.02.21"]
[EventType "swiss"]
[EventCountry "NOR"]
[SourceTitle "playchess.com"]
[Source "ChessBase"]
[SourceQuality "1"]
[TimeControl "5400+30"]

1. d4 d5 2. c4 e6 3. Nc3 Nf6 4. Bg5 Be7 5. e3 O-O 6. Nf3 b6 7. Rc1 Bb7 8. cxd5 exd5 9. Bd3 c5 10. O-O Nbd7 11. Re1 Ne4 12. Bxe7 Qxe7 13. Nd2 Nxd2 14. Qxd2 Nf6 15. Ne2 Rac8 16. Ng3 Ne4 {[%emt 0:39:37]} 17. Bxe4 {[%emt 0:47:50]} 1/2-1/2

[Event "Kragero Resort ELO 2024"]
[Site "Kragero"]
[Date "2024.02.24"]
[Round "8.15"]
[White "Syreng, Gard Alexander Bye"]
[Black "Sathish, Githiha"]
[Result "0-1"]
[ECO "D46"]
[WhiteElo "1244"]
[BlackElo "1332"]
[Annotator "NA RC"]
[PlyCount "111"]
[EventDate "2024.02.21"]
[EventType "swiss"]
[EventCountry "NOR"]
[SourceTitle "playchess.com"]
[Source "ChessBase"]
[SourceQuality "1"]
[TimeControl "5400+30"]

1. d4 d5 2. c4 c6 3. Nf3 Nf6 4. Nc3 e6 5. e3 Bd6 6. Bd3 Nbd7 7. O-O O-O 8. Qc2 dxc4 9. Bxc4 c5 10. Bd3 cxd4 11. exd4 h6 12. Bd2 a6 13. Qc1 Re8 14. Bxh6 gxh6 15. Qxh6 Bf8 16. Qh4 Bg7 17. Ng5 Nf8 18. Rfe1 e5 19. Bc4 Be6 20. Nxe6 Nxe6 21. dxe5 Nh7 22. Qxd8 Rexd8 23. Bxe6 fxe6 24. f4 Rf8 25. g3 Rad8 26. Red1 b5 27. Ne4 Rfe8 28. Rd6 Ra8 29. Rc1 Kf7 30. Rd7+ Re7 31. Rxe7+ Kxe7 32. Rc7+ Kf8 33. h4 Kg8 34. g4 Rf8 35. Nc5 Rxf4 36. Rc8+ Nf8 37. Nxe6 Rxg4+ 38. Kf2 Rxh4 39. Kg3 Ra4 40. Nxg7 Kxg7 41. a3 Ne6 42. Rc6 Kf7 43. Kf2 Nd4 44. Rf6+ Ke7 45. Rf4 Ke6 46. Re4 Kd5 47. e6 Nxe6 48. Re3 Nc5 49. b4 Ne6 50. Ke2 Nd4+ 51. Kd2 Nc6 52. Rd3+ Ke6 53. Rc3 Ne5 54. Kc2 Nc4 55. Rxc4 bxc4 {[%emt 1:31:31]} 56. Kc3 {[%emt 1:29:26]} 0-1

[Event "Kragero Resort ELO 2024"]
[Site "Kragero"]
[Date "2024.02.24"]
[Round "8.16"]
[White "Nordahl, Christine"]
[Black "Bollestad, Leiv Ove"]
[Result "1-0"]
[ECO "D53"]
[WhiteElo "1333"]
[BlackElo "1371"]
[Annotator "NA"]
[PlyCount "107"]
[EventDate "2024.02.21"]
[EventType "swiss"]
[EventCountry "NOR"]
[SourceTitle "playchess.com"]
[Source "ChessBase"]
[SourceQuality "1"]
[TimeControl "5400+30"]

1. d4 d5 2. c4 e6 3. Nc3 Nf6 4. Bg5 Be7 5. e3 b6 6. Rc1 Bb7 7. cxd5 Nxd5 8. Nxd5 Bxd5 9. Bxe7 Qxe7 10. Nf3 Bxa2 11. b3 Qb4+ 12. Nd2 Bxb3 13. Qxb3 Qxb3 14. Nxb3 c6 15. g3 a5 16. Bg2 a4 17. Nd2 Kd7 18. Nc4 Kc7 19. Ne5 a3 20. Nxc6 Nxc6 21. Rxc6+ Kd7 22. O-O Rab8 23. Ra1 b5 24. Rxa3 b4 25. Ra7+ Kd8 26. Rcc7 b3 27. Rab7 b2 28. Rxb8+ Kxc7 29. Rxb2 Rf8 30. Rb7+ Kd6 31. e4 e5 32. d5 g6 33. Rb6+ Kc7 34. Rf6 Kd7 35. d6 h5 36. Bh3+ Kd8 37. d7 g5 38. Rd6 g4 39. Bf1 Ke7 40. Rd5 Ra8 41. Rxe5+ Kxd7 42. Rxh5 Ke6 43. Rg5 f5 44. exf5+ Kf6 45. Rxg4 Kxf5 46. Rf4+ Kg5 47. h4+ Kg6 48. Bd3+ Kh6 49. f3 Ra2 50. g4 Rd2 51. Be4 Rd1+ 52. Kf2 Rd2+ 53. Ke3 Rh2 {[%emt 0:28:50]} 54. Rf7 {[%emt 0:29:57]} 1-0

[Event "Kragero Resort ELO 2024"]
[Site "Kragero"]
[Date "2024.02.24"]
[Round "8.17"]
[White "Elseth, Florian"]
[Black "Lorentzen, Jan Ove"]
[Result "0-1"]
[ECO "A56"]
[WhiteElo "1513"]
[BlackElo "1479"]
[Annotator "NA"]
[PlyCount "96"]
[EventDate "2024.02.21"]
[EventType "swiss"]
[EventCountry "NOR"]
[SourceTitle "playchess.com"]
[Source "ChessBase"]
[SourceQuality "1"]
[TimeControl "5400+30"]

1. d4 Nf6 2. c4 c5 3. d5 d6 4. Nc3 Bf5 5. Nf3 h6 6. e3 g5 7. Bd3 Bxd3 8. Qxd3 Qd7 9. b3 Bg7 10. Bb2 Qg4 11. Rg1 Nbd7 12. h3 Qh5 13. Ne2 Nf8 14. Ng3 Qg6 15. Qxg6 Nxg6 16. O-O-O O-O 17. Nf5 Rfe8 18. Bxf6 Bxf6 19. Nxh6+ Kg7 20. Nf5+ Kh7 21. h4 gxh4 22. N3xh4 Rh8 23. Rh1 a6 24. Nxg6+ Kxg6 25. g4 b5 26. f4 b4 27. Ng3 a5 28. Ne4 Rxh1 29. f5+ Kg7 30. Rxh1 Be5 31. g5 a4 32. bxa4 Rxa4 33. f6+ exf6 34. gxf6+ Kg6 35. Kb1 Kf5 36. Rh4 Ra3 37. Nf2 Rxe3 38. Rh7 Re1+ 39. Kc2 Re2+ 40. Kd1 Rxf2 41. Rxf7 Bxf6 42. Rd7 Ke5 43. Ra7 Kd4 44. Ra6 Be5 45. Ra7 Kxc4 46. Ra6 Kxd5 47. Ra5 Kd4 48. Ke1 {[%emt 1:20:42]} Rh2 {[%emt 0:14:27]} 0-1

[Event "Kragero Resort ELO 2024"]
[Site "Kragero"]
[Date "2024.02.24"]
[Round "8.18"]
[White "Jorgensen, Catherine"]
[Black "Hagen, Bjorn Stian"]
[Result "0-1"]
[ECO "E01"]
[WhiteElo "1351"]
[BlackElo "1278"]
[Annotator "NA RC"]
[PlyCount "90"]
[EventDate "2024.02.21"]
[EventType "swiss"]
[EventCountry "NOR"]
[SourceTitle "playchess.com"]
[Source "ChessBase"]
[SourceQuality "1"]
[TimeControl "5400+30"]

1. d4 Nf6 2. c4 e6 3. g3 d5 4. Bg2 h6 5. Nf3 Bd6 6. Nc3 b6 7. cxd5 exd5 8. O-O Bb7 9. Nb5 Be7 10. Bf4 Bd6 11. Nxd6+ cxd6 12. Rc1 O-O 13. Nh4 g5 14. Bxg5 hxg5 15. Nf3 Nh7 16. Re1 Bc8 17. h4 g4 18. Nh2 Be6 19. e3 f5 20. f3 Nd7 21. fxg4 fxg4 22. Nxg4 Ndf6 23. Nf2 Kh8 24. Bf3 Qd7 25. Rc2 Rg8 26. Kh2 Ng4+ 27. Nxg4 Bxg4 28. Bxg4 Rxg4 29. Rg1 Rag8 30. Rcg2 Nf6 31. Qf3 Ne4 32. a3 Qg7 33. a4 a5 34. b3 Qg6 35. Rf1 Rg7 36. Qf8+ Kh7 37. Qf5 Qxf5 38. Rxf5 Nxg3 39. Rxg3 Rxg3 40. Rf2 Rxe3 41. Rb2 Rgg3 42. b4 axb4 43. Rxb4 Rb3 44. Rb5 Rxb5 45. Kxg3 {[%emt 1:52:08]} Rb4 {[%emt 1:47:18]} 0-1

[Event "Kragero Resort ELO 2024"]
[Site "Kragero"]
[Date "2024.02.24"]
[Round "8.19"]
[White "Halvorsen, Frode"]
[Black "Linkjendal, Sondre Olsen"]
[Result "0-1"]
[ECO "C67"]
[WhiteElo "1385"]
[BlackElo "1373"]
[Annotator "NA RC"]
[PlyCount "61"]
[EventDate "2024.02.21"]
[EventType "swiss"]
[EventCountry "NOR"]
[SourceTitle "playchess.com"]
[Source "ChessBase"]
[SourceQuality "1"]
[TimeControl "5400+30"]

1. e4 e5 2. Nf3 Nc6 3. Bb5 Nf6 4. O-O Nxe4 5. Re1 Nd6 6. Nxe5 Nxe5 7. Rxe5+ Be7 8. Ba4 O-O 9. d3 Bf6 10. Re1 Re8 11. c3 c6 12. Bf4 Nf5 13. Nd2 d5 14. d4 Be6 15. Nf3 Nd6 16. Bc2 Qd7 17. h3 h6 18. b3 Bf5 19. Ne5 Qe6 20. Qd2 Bxc2 21. Qxc2 Bxe5 22. Rxe5 Qf6 23. Bg3 Ne4 24. Re1 Rxe5 25. Bxe5 Qg5 26. f3 Ng3 27. Bxg3 Qxg3 28. Re7 Rb8 29. Rd7 Qe1+ 30. Kh2 Qe6 {[%emt 1:14:41]} 31. Rxf7 {[%emt 0:58:25]} 0-1

[Event "Kragero Resort ELO 2024"]
[Site "Kragero"]
[Date "2024.02.24"]
[Round "8.20"]
[White "Nguyen, Tyson Quang Hy"]
[Black "Kristiansen, David"]
[Result "1-0"]
[ECO "B13"]
[WhiteElo "1267"]
[BlackElo "1407"]
[Annotator "NA"]
[PlyCount "119"]
[EventDate "2024.02.21"]
[EventType "swiss"]
[EventCountry "NOR"]
[SourceTitle "playchess.com"]
[Source "ChessBase"]
[SourceQuality "1"]
[TimeControl "5400+30"]

1. e4 c6 2. d4 d5 3. exd5 cxd5 4. Bd3 Nf6 5. Nf3 Bg4 6. Bg5 Nc6 7. c3 e6 8. Nbd2 Be7 9. Qc2 h6 10. Bf4 Rc8 11. O-O O-O 12. a3 Nh5 13. Bg3 Nxg3 14. fxg3 Bf6 15. Qb1 e5 16. dxe5 Nxe5 17. Nxe5 Bxe5 18. Bf5 Bxf5 19. Qxf5 Bf6 20. Nf3 Qb6+ 21. Rf2 Rfe8 22. Nd4 Bxd4 23. Qxf7+ Kh8 24. cxd4 Qxd4 25. Qd7 Rf8 26. Raf1 Rc2 27. Kh1 Rfxf2 28. Re1 Rxg2 29. Re8+ Kh7 30. Qf5+ g6 31. Re7+ Qg7 32. Rxg7+ Kxg7 33. Qe5+ Kf7 34. Qxd5+ Kf6 35. Qd4+ Kf5 36. Qd5+ Kf6 37. Qf3+ Ke5 38. Qf4+ Kd5 39. Qf7+ Kd4 40. Qd7+ Kc4 41. Qa4+ Kd3 42. Qb3+ Kd2 43. Kxg2 Kc1+ 44. Kh3 Rxb2 45. Qe3+ Kb1 46. Qxh6 Rb6 47. Qe3 Ka2 48. a4 Ra6 49. Qe4 g5 50. Qxb7 Rxa4 51. Qd5+ Kb2 52. Qxg5 a5 53. Qe5+ Kb3 54. Qb5+ Ka3 55. g4 Rb4 56. Qxa5+ Kb3 57. Qxb4+ Kxb4 58. g5 Kc5 59. g6 Kd5 {[%emt 1:13:40]} 60. g7 {[%emt 0:51:59]} 1-0

[Event "Kragero Resort ELO 2024"]
[Site "Kragero"]
[Date "2024.02.24"]
[Round "8.22"]
[White "Robertsen, Nikolas"]
[Black "Sorensen, Vidar Busch"]
[Result "0-1"]
[ECO "A48"]
[WhiteElo "1236"]
[BlackElo "1313"]
[Annotator "NA RC"]
[PlyCount "64"]
[EventDate "2024.02.21"]
[EventType "swiss"]
[EventCountry "NOR"]
[SourceTitle "playchess.com"]
[Source "ChessBase"]
[SourceQuality "1"]
[TimeControl "5400+30"]

1. d4 Nf6 2. Bf4 d6 3. Nf3 g6 4. e3 Bg7 5. Nc3 c6 6. Bd3 O-O 7. O-O Nh5 8. Bg3 Nxg3 9. fxg3 Nd7 10. Qd2 Bh6 11. Ne2 Nf6 12. Rf2 Ng4 13. Rff1 Bxe3+ 14. Qxe3 Nxe3 15. Rf2 a5 16. h3 b5 17. Re1 Nd5 18. a3 Ba6 19. Ref1 b4 20. Bxa6 Rxa6 21. axb4 Nxb4 22. c3 Nd3 23. Nf4 Nxf2 24. Rxf2 Rb6 25. Ng5 Qd7 26. d5 cxd5 27. Nxd5 Rb7 28. Ne4 Qe6 29. Rf4 Qxd5 30. Rf6 Qxe4 31. Rf1 Rxb2 32. c4 {[%emt 0:24:34]} Qxg2# {[%emt 0:30:16]} 0-1

[Event "Kragero Resort ELO 2024"]
[Site "Kragero"]
[Date "2024.02.24"]
[Round "8.24"]
[White "Holten, Terje"]
[Black "Andersen, Lars Loberg"]
[Result "1/2-1/2"]
[ECO "D25"]
[WhiteElo "1313"]
[BlackElo "1429"]
[Annotator "NA RC"]
[PlyCount "106"]
[EventDate "2024.02.21"]
[EventType "swiss"]
[EventCountry "NOR"]
[SourceTitle "playchess.com"]
[Source "ChessBase"]
[SourceQuality "1"]
[TimeControl "5400+30"]

1. d4 Nf6 2. Nf3 d5 3. c4 dxc4 4. e3 b5 5. a4 c6 6. axb5 cxb5 7. Be2 Bb7 8. b3 Qc7 9. bxc4 bxc4 10. Qa4+ Nbd7 11. Qxc4 Qxc4 12. Bxc4 Rc8 13. Nbd2 Bxf3 14. gxf3 e6 15. O-O Bb4 16. Bb5 a5 17. Nb3 O-O 18. Nxa5 Ra8 19. Nb3 Rab8 20. Bxd7 Nxd7 21. Bd2 Bd6 22. Nc1 Rb2 23. Ra2 Rfb8 24. Rxb2 Rxb2 25. Ba5 Rb5 26. Bd8 Rh5 27. f4 f6 28. Ne2 e5 29. Ng3 Rh4 30. Nf5 Rg4+ 31. Kh1 Bf8 32. h3 Rg6 33. Rg1 exf4 34. exf4 Rxg1+ 35. Kxg1 g6 36. Ne3 Kf7 37. Kg2 Bd6 38. Kf3 f5 39. Nc4 Ke6 40. Nxd6 Kxd6 41. Ke3 Kd5 42. Kd3 Nf8 43. Bf6 Nd7 44. Be5 Nb6 45. h4 h5 46. Bc7 Nc4 47. Be5 Nb2+ 48. Ke3 Nd1+ 49. Ke2 Nc3+ 50. Ke3 Kc4 51. Kd2 Ne4+ 52. Ke3 Nc3 53. Kd2 {[%emt 1:14:56]} Ne4+ {[%emt 0:56:29]} 1/2-1/2

[Event "Kragero Resort ELO 2024"]
[Site "Kragero"]
[Date "2024.02.24"]
[Round "8.25"]
[White "Persson, Michael"]
[Black "Jullum, Hege Ibsen"]
[Result "1-0"]
[ECO "D94"]
[WhiteElo "1296"]
[BlackElo "1128"]
[Annotator "NA"]
[PlyCount "92"]
[EventDate "2024.02.21"]
[EventType "swiss"]
[EventCountry "NOR"]
[SourceTitle "playchess.com"]
[Source "ChessBase"]
[SourceQuality "1"]
[TimeControl "5400+30"]

1. d4 d5 2. c4 c6 3. Nc3 Nf6 4. e3 g6 5. Nf3 Bg7 6. cxd5 cxd5 7. Be2 O-O 8. O-O Nc6 9. a3 Re8 10. b4 Bd7 11. Bb2 a6 12. Qb3 Be6 13. Na4 b6 14. Rac1 Bd7 15. Rc2 Ne4 16. Rfc1 b5 17. Nc5 Nxc5 18. dxc5 Bf5 19. Bd3 Bxd3 20. Qxd3 e5 21. Qb3 Ra7 {[%emt 0:52:18]} 22. Rd2 {[%emt 0:38:00]} Rd7 {[%emt 0:52:49]} 23. h3 {[%emt 0:37:37]} d4 {[%emt 0:58:40]} 24. Rcd1 {[%emt 0:43:05]} Bh6 {[%emt 1:05:18]} 25. Kf1 {[%emt 0:45:40]} Qe7 {[%emt 1:07:22]} 26. Re2 {[%emt 0:51:17]} Qd8 {[%emt 1:20:48]} 27. exd4 {[%emt 0:56:30]} exd4 {[%emt 1:24:42]} 28. Rxe8+ {[%emt 0:57:03]} Qxe8 {[%emt 1:24:58]} 29. Rd3 {[%emt 1:01:09]} Qe4 {[%emt 1:27:33]} 30. Qd1 {[%emt 1:02:17]} Bg7 {[%emt 1:29:55]} 31. Qe2 {[%emt 1:04:16]} Qd5 {[%emt 1:34:22]} 32. Qd1 {[%emt 1:05:28]} Qe4 {[%emt 1:35:29]} 33. Qe2 {[%emt 1:08:23]} Qd5 {[%emt 1:36:00]} 34. Qd2 {[%emt 1:10:02]} h6 {[%emt 1:37:22]} 35. Ng1 {[%emt 1:13:15]} Qc4 {[%emt 1:40:07]} 36. Nf3 {[%emt 1:14:32]} Ne5 37. Nxe5 {[%emt 1:14:34]} Bxe5 {[%emt 1:44:25]} 38. Kg1 {[%emt 1:16:42]} g5 {[%emt 1:45:24]} 39. Qd1 {[%emt 1:18:32]} Kg7 {[%emt 1:47:51]} 40. g3 {[%emt 1:21:15]} Qd5 {[%emt 1:48:53]} 41. Qe2 {[%emt 1:22:44]} f6 {[%emt 1:50:20]} 42. Qc2 {[%emt 1:23:53]} Re7 {[%emt 1:51:30]} 43. Qd1 {[%emt 1:27:23]} Rd7 {[%emt 1:52:00]} 44. Qf3 {[%emt 1:28:32]} Qc4 {[%emt 1:52:30]} 45. Qf5 {[%emt 1:31:44]} Rc7 {[%emt 1:53:00]} 46. Qe4 {[%emt 1:31:58]} Rd7 {[%emt 1:53:30]} 1-0

[Event "Kragero Resort ELO 2024"]
[Site "Kragero"]
[Date "2024.02.25"]
[Round "9.9"]
[White "Sathish, Githiha"]
[Black "Kveim, Ingvar Torjesen"]
[Result "1-0"]
[ECO "A45"]
[WhiteElo "1332"]
[BlackElo "1542"]
[Annotator "NA RC"]
[PlyCount "61"]
[EventDate "2024.02.21"]
[EventType "swiss"]
[EventCountry "NOR"]
[SourceTitle "playchess.com"]
[Source "ChessBase"]
[SourceQuality "1"]
[TimeControl "5400+30"]

1. d4 Nf6 2. Bg5 Ne4 3. Bf4 d5 4. e3 e6 5. Nd2 Nf6 6. Ngf3 Bd6 7. Ne5 Nbd7 8. Bd3 O-O 9. O-O Qe7 10. h3 c5 11. c3 Re8 12. Ndf3 Ne4 13. Qc2 cxd4 14. exd4 f6 15. Nxd7 Bxf4 16. Nc5 Nxc5 17. Bxh7+ Kf8 18. Nh4 Qc7 19. Ng6+ Kf7 20. Nxf4 Qxf4 21. Bg6+ Ke7 22. Bxe8 Ne4 23. Bb5 e5 24. dxe5 Be6 25. exf6+ gxf6 26. Rfe1 Rg8 27. Re3 Ng5 28. Rae1 Nf3+ 29. Rxf3 Qxf3 30. Qh7+ Kd8 {[%emt 1:12:38]} 31. Qxg8+ {[%emt 0:54:52]} 1-0

[Event "Kragero Resort ELO 2024"]
[Site "Kragero"]
[Date "2024.02.25"]
[Round "9.10"]
[White "Johannessen, Simon T"]
[Black "Gevorgyan, Nrane"]
[Result "1-0"]
[ECO "D00"]
[WhiteElo "1484"]
[BlackElo "1268"]
[Annotator "NA"]
[PlyCount "85"]
[EventDate "2024.02.21"]
[EventType "swiss"]
[EventCountry "NOR"]
[SourceTitle "playchess.com"]
[Source "ChessBase"]
[SourceQuality "1"]
[TimeControl "5400+30"]

1. d4 d5 2. Bg5 Nf6 3. Bxf6 exf6 4. g3 Bd6 5. Bg2 c6 6. e3 O-O 7. Nd2 Bf5 8. Ngf3 Qc8 9. O-O Bh3 10. c4 dxc4 11. Nxc4 Bc7 12. Rc1 Bxg2 13. Kxg2 f5 14. Re1 Qe6 15. Qb3 Bb6 16. Rc3 Qe4 17. a4 g5 18. Ncd2 Qe7 19. Qc2 g4 20. Nh4 f4 21. Kf1 f3 22. Nf5 Qg5 23. Qe4 Nd7 24. Qxg4 Qxg4 25. Nh6+ Kg7 26. Nxg4 Ba5 27. Rc2 Nb6 28. Ra1 Bxd2 29. Rxd2 f6 30. h4 Rad8 31. Nh2 c5 32. Nxf3 cxd4 33. Nxd4 Kf7 34. Rc2 Rd7 35. a5 Nd5 36. Rd1 Re8 37. Rcd2 Red8 38. Ke1 Nb4 39. Nb5 Nc2+ 40. Ke2 Rxd2+ 41. Rxd2 Rxd2+ 42. Kxd2 Na1 {[%emt 1:50:33]} 43. Kc3 {[%emt 1:47:12]} 1-0

[Event "Kragero Resort ELO 2024"]
[Site "Kragero"]
[Date "2024.02.25"]
[Round "9.12"]
[White "Linkjendal, Sondre Olsen"]
[Black "Kopperud, Vidar Aleksander"]
[Result "1/2-1/2"]
[ECO "B22"]
[WhiteElo "1373"]
[BlackElo "1642"]
[Annotator "NA RC"]
[PlyCount "49"]
[EventDate "2024.02.21"]
[EventType "swiss"]
[EventCountry "NOR"]
[SourceTitle "playchess.com"]
[Source "ChessBase"]
[SourceQuality "1"]
[TimeControl "5400+30"]

1. e4 c5 2. d4 cxd4 3. c3 Nf6 4. e5 Nd5 5. cxd4 e6 6. Nf3 Be7 7. Bd2 O-O 8. Nc3 Nxc3 9. Bxc3 b6 10. Bd3 Bb7 11. O-O d6 12. Qe2 Nd7 13. Rfd1 Rc8 14. Rac1 Rc7 15. Be4 Bxe4 16. Qxe4 d5 17. Qg4 Qc8 18. Bd2 Rd8 19. Rc3 Rxc3 20. Bxc3 Qc4 21. Ra1 Rc8 22. Qf4 h6 23. Qe3 Nf8 24. a3 Ng6 {[%emt 1:33:25]} 25. Rc1 {[%emt 1:27:27]} 1/2-1/2